[Event "DVM U20 2019"]
[Site "Braunschweig"]
[Date "2019.12.28"]
[Round "4"]
[White "Wu, Leon"]
[Black "Freiherr von Hauff, Christopher"]
[Result "1-0"]
[ECO "C95"]
[WhiteElo "2019"]
[BlackElo "1868"]
[Annotator "NA"]
[PlyCount "200"]
[EventDate "2019.12.27"]
[EventType "team-tourn"]
[EventRounds "7"]
[EventCountry "GER"]
[SourceTitle "playchess.com"]
[Source "ChessBase"]
[SourceQuality "1"]
[WhiteTeam "OSG Baden-Baden"]
[BlackTeam "SK Bebenhausen"]
[TimeControl "40/5400+30:1800+30"]

1. e4 {[%emt 0:00:00]} e5 {[%emt 0:00:00]} 2. Nf3 {[%emt 0:00:00]} Nc6 {[%emt 0:00:00]} 3. Bb5 {[%emt 0:00:00]} a6 {[%emt 0:00:00]} 4. Ba4 {[%emt 0:00:00]} Nf6 {[%emt 0:00:23]} 5. O-O {[%emt 0:00:00]} Be7 {[%emt 0:01:00]} 6. Re1 {[%emt 0:00:00]} b5 {[%emt 0:00:26]} 7. Bb3 {[%emt 0:00:01]} d6 {[%emt 0:03:08]} 8. c3 {[%emt 0:00:06]} O-O {[%emt 0:00:29]} 9. h3 {[%emt 0:00:11]} Nb8 {[%emt 0:00:56]} 10. d4 {[%emt 0:00:13]} Nbd7 {[%emt 0:00:46]} 11. Nbd2 {[%emt 0:01:05]} Bb7 {[%emt 0:00:50]} 12. Bc2 {[%emt 0:00:38]} Re8 {[%emt 0:00:42]} 13. Nf1 {[%emt 0:00:11]} Bf8 {[%emt 0:01:00]} 14. Ng3 {[%emt 0:00:07]} g6 {[%emt 0:00:39]} 15. a4 {[%emt 0:06:34]} Bg7 {[%emt 0:03:33]} 16. d5 {[%emt 0:07:30]} h6 {[%emt 0:09:34]} 17. Be3 {[%emt 0:00:20]} Kh7 {[%emt 0:01:14]} 18. a5 {[%emt 0:00:39]} Qe7 {[%emt 0:01:53]} 19. b4 {[%emt 0:00:47]} Rac8 {[%emt 0:06:41]} 20. Qd2 {[%emt 0:01:37]} c6 {[%emt 0:02:21]} 21. dxc6 {[%emt 0:04:25]} Rxc6 {[%emt 0:00:58]} 22. Rac1 {[%emt 0:00:34]} Rec8 {[%emt 0:02:03]} 23. Bb1 {[%emt 0:00:59]} d5 {[%emt 0:08:15]} 24. exd5 {[%emt 0:06:42]} Rd6 {[%emt 0:00:09]} 25. Qe2 {[%emt 0:01:39]} Bxd5 {[%emt 0:03:15]} 26. Red1 {[%emt 0:28:38]} Bc4 {[%emt 0:02:37]} 27. Qe1 {[%emt 0:02:00]} Rxd1 {[%emt 0:03:23]} 28. Rxd1 {[%emt 0:07:58]} Bb3 {[%emt 0:13:42]} 29. Rc1 {[%emt 0:02:56]} Ne8 {[%emt 0:02:15]} 30. Ne4 {[%emt 0:04:03]} Bd5 {[%emt 0:08:12]} 31. Qd2 {[%emt 0:02:20]} Bxe4 {[%emt 0:01:04]} 32. Bxe4 {[%emt 0:00:08]} Nd6 {[%emt 0:00:22]} 33. Bd5 {[%emt 0:00:41]} Nf6 {[%emt 0:00:30]} 34. Bc5 {[%emt 0:01:22]} Rd8 {[%emt 0:09:40]} 35. Re1 {[%emt 0:10:42]} Nh5 {[%emt 0:01:00]} 36. Bc6 {[%emt 0:01:02]} Qf6 {[%emt 0:01:00]} 37. Bb6 {[%emt 0:02:31]} Rc8 {[%emt 0:01:08]} 38. Bd7 {[%emt 0:03:55]} Nc4 {[%emt 0:00:57]} 39. Qd5 {[%emt 0:00:30]} Nxb6 {[%emt 0:01:48]} 40. axb6 {[%emt 0:00:06]} Rd8 {[%emt 0:01:56]} 41. b7 {[%emt 0:30:11]} e4 {[%emt 0:22:11]} 42. Qxe4 {[%emt 0:00:00]} Qxc3 {[%emt 0:00:42]} 43. Bc8 {[%emt 0:00:00]} Rxc8 {[%emt 0:01:21]} 44. bxc8=Q {[%emt 0:00:00]} Qxc8 {[%emt 0:00:07]} 45. Ne5 {[%emt 0:00:00]} Qe6 {[%emt 0:04:17]} 46. f4 {[%emt 0:00:00]} Qb6+ {[%emt 0:00:54]} 47. Kh2 {[%emt 0:00:00]} Qf2 {[%emt 0:00:29]} 48. Nd3 {[%emt 0:00:00]} Qg3+ {[%emt 0:00:40]} 49. Kg1 {[%emt 0:00:00]} Nf6 {[%emt 0:00:50]} 50. Qe2 {[%emt 0:00:00]} Nh5 {[%emt 0:01:13]} 51. Qf3 {[%emt 0:00:00]} Qh4 {[%emt 0:01:47]} 52. Kh2 {[%emt 0:00:00]} Qd8 {[%emt 0:01:49]} 53. g4 {[%emt 0:00:00]} Nf6 {[%emt 0:00:34]} 54. f5 {[%emt 0:00:53]} Qc7+ {[%emt 0:02:05]} 55. Kg2 {[%emt 0:00:32]} g5 {[%emt 0:00:51]} 56. Rc1 {[%emt 0:01:27]} Qd7 {[%emt 0:01:03]} 57. Rc6 {[%emt 0:01:51]} Nd5 {[%emt 0:02:32]} 58. Rxa6 {[%emt 0:02:42]} Nxb4 {[%emt 0:00:43]} 59. Nxb4 {[%emt 0:01:59]} Qd2+ {[%emt 0:00:09]} 60. Qf2 {[%emt 0:00:10]} Qxb4 {[%emt 0:00:04]} 61. f6 {[%emt 0:00:20]} Qe4+ {[%emt 0:00:25]} 62. Kg1 {[%emt 0:00:52]} Qb1+ {[%emt 0:00:39]} 63. Kh2 {[%emt 0:01:33]} Bf8 {[%emt 0:00:35]} 64. Qf5+ {[%emt 0:00:45]} Qxf5 {[%emt 0:00:07]} 65. gxf5 {[%emt 0:00:03]} Bc5 {[%emt 0:00:59]} 66. Ra5 {[%emt 0:01:21]} Bd4 {[%emt 0:00:18]} 67. Rxb5 {[%emt 0:00:07]} Bxf6 {[%emt 0:00:05]} 68. Rb7 {[%emt 0:00:11]} Kg7 {[%emt 0:00:09]} 69. Kg3 {[%emt 0:00:21]} h5 {[%emt 0:00:11]} 70. Ra7 {[%emt 0:01:24]} Bd4 {[%emt 0:00:40]} 71. Ra4 {[%emt 0:00:34]} Be5+ {[%emt 0:00:37]} 72. Kf3 {[%emt 0:00:08]} f6 {[%emt 0:01:24]} 73. Rb4 {[%emt 0:01:30]} Kh6 {[%emt 0:00:56]} 74. Rc4 {[%emt 0:01:49]} Kg7 {[%emt 0:00:26]} 75. Rc8 {[%emt 0:00:58]} Kh7 {[%emt 0:00:41]} 76. Rc4 {[%emt 0:01:07]} Kg7 {[%emt 0:00:06]} 77. Re4 {[%emt 0:00:29]} Kf7 {[%emt 0:00:33]} 78. Rb4 {[%emt 0:00:09]} Kg7 {[%emt 0:00:08]} 79. Rb1 {[%emt 0:00:08]} Kh7 {[%emt 0:00:25]} 80. Rg1 {[%emt 0:00:04]} Kg7 {[%emt 0:01:12]} 81. Ke4 {[%emt 0:00:39]} Kf7 {[%emt 0:00:17]} 82. Kd5 {[%emt 0:00:06]} Ke7 {[%emt 0:01:06]} 83. Rg2 {[%emt 0:00:51]} Kd7 {[%emt 0:00:43]} 84. Rg1 {[%emt 0:01:06]} Ke7 {[%emt 0:00:30]} 85. Rb1 {[%emt 0:00:07]} Kd7 {[%emt 0:00:16]} 86. Rb4 {[%emt 0:00:49]} Kc7 {[%emt 0:02:43]} 87. Rc4+ {[%emt 0:00:28]} Kd7 {[%emt 0:00:08]} 88. Ra4 {[%emt 0:00:03]} Bg3 {[%emt 0:02:29]} 89. Ra8 {[%emt 0:00:24]} Bh2 {[%emt 0:00:47]} 90. Rh8 {[%emt 0:01:36]} h4 {[%emt 0:00:14]} 91. Rh7+ {[%emt 0:00:23]} Kc8 {[%emt 0:00:17]} 92. Re7 {[%emt 0:01:48]} Be5 {[%emt 0:00:50]} 93. Rh7 {[%emt 0:00:43]} Bg3 {[%emt 0:00:12]} 94. Rg7 {[%emt 0:00:22]} Bf4 {[%emt 0:00:19]} 95. Ke6 {[%emt 0:00:29]} Be5 {[%emt 0:00:10]} 96. Ra7 {[%emt 0:00:42]} Kb8 {[%emt 0:00:13]} 97. Ra5 {[%emt 0:00:24]} Bd4 {[%emt 0:00:21]} 98. Rd5 {[%emt 0:00:07]} Be5 {[%emt 0:00:23]} 99. Rxe5 {[%emt 0:00:22]} fxe5 {[%emt 0:00:22]} 100. f6 {[%emt 0:00:03]} Ka7 {normal} 1-0

[Event "DVM U20 2019"]
[Site "Braunschweig"]
[Date "2019.12.28"]
[Round "4"]
[White "Seref, Erdogan"]
[Black "Heise, Tobias"]
[Result "1-0"]
[ECO "A15"]
[WhiteElo "2003"]
[BlackElo "1712"]
[Annotator "NA"]
[PlyCount "54"]
[EventDate "2019.12.27"]
[EventType "team-tourn"]
[EventRounds "7"]
[EventCountry "GER"]
[SourceTitle "playchess.com"]
[Source "ChessBase"]
[SourceQuality "1"]
[WhiteTeam "SF Brackel"]
[BlackTeam "SK Lehrte 1919"]
[TimeControl "40/5400+30:1800+30"]

1. c4 {[%emt 0:00:00]} Nf6 {[%emt 0:00:00]} 2. Nf3 {[%emt 0:00:00]} e6 {[%emt 0:00:13]} 3. g3 {[%emt 0:00:00]} d5 {[%emt 0:02:24]} 4. b3 {[%emt 0:00:05]} c6 {[%emt 0:01:09]} 5. Bg2 {[%emt 0:00:13]} Nbd7 {[%emt 0:03:35]} 6. Bb2 {[%emt 0:00:23]} b6 {[%emt 0:03:39]} 7. O-O {[%emt 0:00:31]} Ba6 {[%emt 0:00:39]} 8. Nc3 {[%emt 0:06:12]} Rc8 {[%emt 0:10:15]} 9. cxd5 {[%emt 0:02:37]} cxd5 {[%emt 0:00:21]} 10. Rc1 {[%emt 0:02:52]} Bd6 {[%emt 0:02:16]} 11. Nd4 {[%emt 0:08:21]} O-O {[%emt 0:03:59]} 12. Ncb5 {[%emt 0:03:58]} Bxb5 {[%emt 0:01:41]} 13. Nxb5 {[%emt 0:01:20]} Bb8 {[%emt 0:00:17]} 14. Rxc8 {[%emt 0:05:41]} Qxc8 {[%emt 0:03:40]} 15. Qa1 {[%emt 0:00:43]} a6 {[%emt 0:18:32]} 16. Rc1 {[%emt 0:01:21]} Qb7 {[%emt 0:00:35]} 17. Nc3 {[%emt 0:05:39]} b5 {[%emt 0:04:52]} 18. Rc2 {[%emt 0:05:54]} Ba7 {[%emt 0:02:13]} 19. Qc1 {[%emt 0:04:14]} Bb6 {[%emt 0:02:59]} 20. e3 {[%emt 0:09:51]} Re8 {[%emt 0:05:11]} 21. Ne2 {[%emt 0:02:46]} e5 {[%emt 0:06:44]} 22. f4 {[%emt 0:07:31]} e4 {[%emt 0:00:55]} 23. Nd4 {[%emt 0:01:00]} Kh8 {[%emt 0:04:13]} 24. Bh3 {[%emt 0:01:58]} h6 {[%emt 0:06:19]} 25. Nf5 {[%emt 0:02:40]} Rg8 {[%emt 0:03:30]} 26. Nd6 {[%emt 0:05:46]} Qa7 {[%emt 0:00:18]} 27. Nxf7+ {[%emt 0:00:55]} Kh7 {[%emt 0:00:07] normal} 1-0

[Event "DVM U20 2019"]
[Site "Braunschweig"]
[Date "2019.12.28"]
[Round "4"]
[White "Wagner, Benjamin"]
[Black "Doepper, Anna Berenice"]
[Result "1-0"]
[ECO "C11"]
[WhiteElo "1994"]
[BlackElo "1855"]
[Annotator "NA"]
[PlyCount "67"]
[EventDate "2019.12.27"]
[EventType "team-tourn"]
[EventRounds "7"]
[EventCountry "GER"]
[SourceTitle "playchess.com"]
[Source "ChessBase"]
[SourceQuality "1"]
[WhiteTeam "SG Aufbau Elbe Magdeburg"]
[BlackTeam "SF Essen-Katernberg"]
[TimeControl "40/5400+30:1800+30"]

1. e4 {[%emt 0:00:00]} e6 {[%emt 0:00:00]} 2. d4 {[%emt 0:00:00]} d5 {[%emt 0:00:00]} 3. Nc3 {[%emt 0:00:00]} Nf6 {[%emt 0:00:00]} 4. Bg5 {[%emt 0:00:00]} dxe4 {[%emt 0:00:00]} 5. Nxe4 {[%emt 0:00:00]} Be7 {[%emt 0:00:00]} 6. Bxf6 {[%emt 0:00:05]} gxf6 {[%emt 0:00:00]} 7. Nf3 {[%emt 0:00:12]} f5 {[%emt 0:00:00]} 8. Nc3 {[%emt 0:00:15]} Bf6 {[%emt 0:00:28]} 9. Bc4 {[%emt 0:01:40]} a6 {[%emt 0:06:02]} 10. Qe2 {[%emt 0:10:24]} b5 {[%emt 0:04:27]} 11. Bd3 {[%emt 0:05:41]} O-O {[%emt 0:00:53]} 12. g4 {[%emt 0:05:48]} Nc6 {[%emt 0:09:42]} 13. Rg1 {[%emt 0:07:42]} Kh8 {[%emt 0:00:58]} 14. O-O-O {[%emt 0:01:58]} b4 {[%emt 0:08:18]} 15. Ne4 {[%emt 0:09:55]} Nxd4 {[%emt 0:16:48]} 16. Nxd4 {[%emt 0:01:41]} Qxd4 {[%emt 0:01:47]} 17. Nxf6 {[%emt 0:00:19]} Qxf6 {[%emt 0:00:04]} 18. Rg3 {[%emt 0:12:10]} e5 {[%emt 0:15:42]} 19. gxf5 {[%emt 0:08:02]} Bxf5 {[%emt 0:00:38]} 20. Qf3 {[%emt 0:04:43]} Qh6+ {[%emt 0:00:18]} 21. Kb1 {[%emt 0:00:05]} Bxd3 {[%emt 0:00:08]} 22. Qxd3 {[%emt 0:00:14]} Rg8 {[%emt 0:03:17]} 23. Qc4 {[%emt 0:09:21]} Rxg3 {[%emt 0:01:50]} 24. hxg3 {[%emt 0:00:22]} Qf6 {[%emt 0:05:47]} 25. Qxc7 {[%emt 0:00:54]} Qxf2 {[%emt 0:00:18]} 26. Qxe5+ {[%emt 0:00:11]} Kg8 {[%emt 0:00:35]} 27. Qe4 {[%emt 0:02:08]} Rf8 {[%emt 0:01:46]} 28. Rh1 {[%emt 0:01:05]} f5 {[%emt 0:00:09]} 29. Qxb4 {[%emt 0:01:03]} Qxg3 {[%emt 0:01:10]} 30. Qd4 {[%emt 0:02:00]} f4 {[%emt 0:04:36]} 31. Rg1 {[%emt 0:00:23]} Rf7 {[%emt 0:00:05]} 32. c4 {[%emt 0:03:55]} Qg6+ {[%emt 0:01:32]} 33. Rxg6+ {[%emt 0:00:23]} hxg6 {[%emt 0:00:03]} 34. Qe4 {[%emt 0:01:10] normal} 1-0

[Event "DVM U20 2019"]
[Site "Braunschweig"]
[Date "2019.12.28"]
[Round "4"]
[White "McPherson, Elisha"]
[Black "Schamschurko, Andre"]
[Result "1-0"]
[ECO "B23"]
[WhiteElo "1975"]
[BlackElo "1868"]
[Annotator "NA"]
[PlyCount "98"]
[EventDate "2019.12.27"]
[EventType "team-tourn"]
[EventRounds "7"]
[EventCountry "GER"]
[SourceTitle "playchess.com"]
[Source "ChessBase"]
[SourceQuality "1"]
[WhiteTeam "SF Augsburg"]
[BlackTeam "USV TU Dresden"]
[TimeControl "40/5400+30:1800+30"]

1. e4 {[%emt 0:00:00]} c5 {[%emt 0:00:00]} 2. Nc3 {[%emt 0:00:00]} Nc6 {[%emt 0:00:00]} 3. f4 {[%emt 0:00:21]} e6 {[%emt 0:00:16]} 4. Nf3 {[%emt 0:00:08]} d6 {[%emt 0:00:55]} 5. d4 {[%emt 0:09:40]} cxd4 {[%emt 0:04:12]} 6. Nxd4 {[%emt 0:00:17]} a6 {[%emt 0:05:11]} 7. Be3 {[%emt 0:05:31]} Nf6 {[%emt 0:06:48]} 8. Be2 {[%emt 0:08:15]} Be7 {[%emt 0:06:21]} 9. Bf3 {[%emt 0:03:17]} e5 {[%emt 0:05:16]} 10. Nb3 {[%emt 0:14:25]} O-O {[%emt 0:06:15]} 11. Qe2 {[%emt 0:09:11]} b5 {[%emt 0:11:49]} 12. O-O-O {[%emt 0:02:30]} Bb7 {[%emt 0:05:15]} 13. Nd5 {[%emt 0:06:46]} Rc8 {[%emt 0:15:13]} 14. Bb6 {[%emt 0:05:06]} Qe8 {[%emt 0:01:28]} 15. Nxf6+ {[%emt 0:00:52]} Bxf6 {[%emt 0:01:44]} 16. Bg4 {[%emt 0:01:48]} exf4 {[%emt 0:08:33]} 17. Bxc8 {[%emt 0:01:10]} Qe5 {[%emt 0:00:40]} 18. c3 {[%emt 0:01:54]} Rxc8 {[%emt 0:00:18]} 19. Kb1 {[%emt 0:01:12]} Ne7 {[%emt 0:06:33]} 20. Rhe1 {[%emt 0:01:31]} Bh4 {[%emt 0:01:21]} 21. Bd4 {[%emt 0:04:51]} Qe6 {[%emt 0:00:51]} 22. Bf2 {[%emt 0:05:39]} Bxf2 {[%emt 0:04:05]} 23. Qxf2 {[%emt 0:00:01]} Ng6 {[%emt 0:01:13]} 24. Qe2 {[%emt 0:02:23]} Re8 {[%emt 0:00:52]} 25. Rd4 {[%emt 0:05:46]} Qe7 {[%emt 0:00:30]} 26. Nd2 {[%emt 0:02:24]} f5 {[%emt 0:00:33]} 27. Qf2 {[%emt 0:00:58]} fxe4 {[%emt 0:00:35]} 28. Nxe4 {[%emt 0:01:03]} Kf8 {[%emt 0:01:30]} 29. Re2 {[%emt 0:01:56]} d5 {[%emt 0:02:01]} 30. Ng3 {[%emt 0:00:29]} Qf6 {[%emt 0:01:06]} 31. Rxe8+ {[%emt 0:00:42]} Kxe8 {[%emt 0:00:04]} 32. Ne2 {[%emt 0:00:27]} Qf5+ {[%emt 0:00:15]} 33. Kc1 {[%emt 0:00:40]} Ne5 {[%emt 0:00:20]} 34. Rxf4 {[%emt 0:02:29]} Nd3+ {[%emt 0:00:10]} 35. Kd2 {[%emt 0:00:27]} Qxf4+ {[%emt 0:01:11]} 36. Qxf4 {[%emt 0:00:13]} Nxf4 {[%emt 0:00:06]} 37. Nxf4 {[%emt 0:00:02]} Ke7 {[%emt 0:00:16]} 38. Ke3 {[%emt 0:00:37]} g6 {[%emt 0:00:56]} 39. Kd4 {[%emt 0:00:14]} Kd6 {[%emt 0:00:12]} 40. Nh3 {[%emt 0:01:48]} h6 {[%emt 0:04:15]} 41. Nf4 {[%emt 0:02:57]} g5 {[%emt 0:01:59]} 42. Nd3 {[%emt 0:00:19]} Bc8 {[%emt 0:01:13]} 43. g3 {[%emt 0:13:36]} a5 {[%emt 0:13:55]} 44. a4 {[%emt 0:06:15]} bxa4 {[%emt 0:06:45]} 45. Nc5 {[%emt 0:00:13]} Kc6 {[%emt 0:00:41]} 46. Nxa4 {[%emt 0:01:12]} Ba6 {[%emt 0:00:23]} 47. Nc5 {[%emt 0:01:07]} Bc4 {[%emt 0:01:01]} 48. Ne6 {[%emt 0:03:04] normal} Kb5 {[%emt 0:05:27]} 49. Nc7+ {[%emt 0:00:24] normal} Ka4 {[%emt 0:01:14] normal} 1-0

[Event "DVM U20 2019"]
[Site "Braunschweig"]
[Date "2019.12.28"]
[Round "4"]
[White "Wiesner, Alexander"]
[Black "Triantafillidis, Simeon"]
[Result "1-0"]
[ECO "A43"]
[WhiteElo "1960"]
[BlackElo "1931"]
[Annotator "NA"]
[PlyCount "110"]
[EventDate "2019.12.27"]
[EventType "team-tourn"]
[EventRounds "7"]
[EventCountry "GER"]
[SourceTitle "playchess.com"]
[Source "ChessBase"]
[SourceQuality "1"]
[WhiteTeam "Karlsruher SF"]
[BlackTeam "SF HN-Biberach"]
[TimeControl "40/5400+30:1800+30"]

1. d4 {[%emt 0:00:00]} c5 {[%emt 0:00:00]} 2. e3 {[%emt 0:00:00]} e6 {[%emt 0:00:05]} 3. Nf3 {[%emt 0:00:15]} Nf6 {[%emt 0:00:47]} 4. c4 {[%emt 0:00:35]} d5 {[%emt 0:02:21]} 5. Nc3 {[%emt 0:00:10]} Nc6 {[%emt 0:00:40]} 6. Be2 {[%emt 0:06:35]} Bd6 {[%emt 0:02:31]} 7. O-O {[%emt 0:00:27]} O-O {[%emt 0:00:06]} 8. a3 {[%emt 0:00:48]} Ne4 {[%emt 0:07:43]} 9. Qc2 {[%emt 0:09:11]} Nxc3 {[%emt 0:01:04]} 10. Qxc3 {[%emt 0:01:41]} dxc4 {[%emt 0:05:42]} 11. dxc5 {[%emt 0:01:15]} Bxc5 {[%emt 0:01:10]} 12. Qxc4 {[%emt 0:05:50]} Be7 {[%emt 0:01:33]} 13. Bd2 {[%emt 0:06:51]} Bf6 {[%emt 0:03:11]} 14. Bc3 {[%emt 0:03:16]} e5 {[%emt 0:03:48]} 15. Rfd1 {[%emt 0:10:23]} Qe7 {[%emt 0:01:43]} 16. Qb5 {[%emt 0:09:13]} a6 {[%emt 0:03:25]} 17. Qb6 {[%emt 0:00:30]} Be6 {[%emt 0:05:05]} 18. Nd2 {[%emt 0:07:29]} Bd5 {[%emt 0:13:03]} 19. Nb3 {[%emt 0:04:03]} Bxb3 {[%emt 0:10:00]} 20. Qxb3 {[%emt 0:00:05]} Rfd8 {[%emt 0:00:26]} 21. Qb6 {[%emt 0:05:10]} Rxd1+ {[%emt 0:09:29]} 22. Rxd1 {[%emt 0:00:18]} Rd8 {[%emt 0:00:25]} 23. Rxd8+ {[%emt 0:03:19]} Nxd8 {[%emt 0:00:07]} 24. Bf3 {[%emt 0:02:26]} h6 {[%emt 0:04:19]} 25. h3 {[%emt 0:08:37]} Qd7 {[%emt 0:01:51]} 26. Bg4 {[%emt 0:00:55]} Qc6 {[%emt 0:03:57]} 27. Qxc6 {[%emt 0:05:22]} Nxc6 {[%emt 0:00:11]} 28. Bc8 {[%emt 0:00:05]} Nd8 {[%emt 0:01:23]} 29. Bb4 {[%emt 0:02:01]} g6 {[%emt 0:07:36]} 30. Kf1 {[%emt 0:02:22]} Bg7 {[%emt 0:02:03]} 31. Be7 {[%emt 0:00:23]} Nc6 {[%emt 0:00:05]} 32. Bd6 {[%emt 0:00:18]} Nd8 {[%emt 0:00:08]} 33. Bc7 {[%emt 0:00:32]} Bf6 {[%emt 0:00:19]} 34. Bd6 {[%emt 0:00:35]} Bg7 {[%emt 0:00:08]} 35. e4 {[%emt 0:01:11]} g5 {[%emt 0:08:44]} 36. Ke2 {[%emt 0:02:17]} Bf6 {[%emt 0:00:23]} 37. Kd3 {[%emt 0:00:17]} Ne6 {[%emt 0:00:33]} 38. Bxe6 {[%emt 0:01:15]} fxe6 {[%emt 0:00:01]} 39. Kc4 {[%emt 0:00:09]} Kf7 {[%emt 0:02:08]} 40. Kc5 {[%emt 0:00:49]} Ke8 {[%emt 0:00:28]} 41. Kb6 {[%emt 0:31:13]} Kd7 {[%emt 0:30:09]} 42. Bf8 {[%emt 0:00:10]} Kc8 {[%emt 0:00:21]} 43. Bxh6 {[%emt 0:00:20]} Bd8+ {[%emt 0:00:22]} 44. Ka7 {[%emt 0:02:16]} Bf6 {[%emt 0:00:17]} 45. Bf8 {[%emt 0:00:00]} Kc7 {[%emt 0:00:00]} 46. Bb4 {[%emt 0:00:00]} Kc6 {[%emt 0:00:00]} 47. Bc3 {[%emt 0:00:00]} Be7 {[%emt 0:00:00]} 48. Bd2 {[%emt 0:00:00]} Bf6 {[%emt 0:00:00]} 49. Be3 {[%emt 0:00:00]} a5 {[%emt 0:00:00]} 50. a4 {[%emt 0:00:00]} Bd8 {[%emt 0:00:00]} 51. b3 {[%emt 0:00:00]} Bf6 {[%emt 0:00:00]} 52. Bb6 {[%emt 0:00:00]} Be7 {[%emt 0:00:00]} 53. Bxa5 {[%emt 0:00:00]} Bc5+ {[%emt 0:00:00]} 54. Kb8 {[%emt 0:00:00]} Bxf2 {[%emt 0:00:00] normal} 55. Bb4 {[%emt 0:00:00] normal} b6 {normal} 1-0

[Event "DVM U20 2019"]
[Site "Braunschweig"]
[Date "2019.12.28"]
[Round "4"]
[White "Brockmeyer, Tobias"]
[Black "Kracht, Raphael"]
[Result "1-0"]
[ECO "E20"]
[WhiteElo "1902"]
[BlackElo "2031"]
[Annotator "NA"]
[PlyCount "98"]
[EventDate "2019.12.27"]
[EventType "team-tourn"]
[EventRounds "7"]
[EventCountry "GER"]
[SourceTitle "playchess.com"]
[Source "ChessBase"]
[SourceQuality "1"]
[WhiteTeam "SK Lehrte 1919"]
[BlackTeam "SF Brackel"]
[TimeControl "40/5400+30:1800+30"]

1. d4 {[%emt 0:00:00]} Nf6 {[%emt 0:00:00]} 2. c4 {[%emt 0:00:00]} e6 {[%emt 0:00:00]} 3. Nc3 {[%emt 0:00:00]} Bb4 {[%emt 0:00:00]} 4. f3 {[%emt 0:00:00]} c5 {[%emt 0:00:01]} 5. d5 {[%emt 0:00:00]} O-O {[%emt 0:02:17]} 6. e4 {[%emt 0:00:00]} b5 {[%emt 0:00:07]} 7. Nh3 {[%emt 0:00:08]} bxc4 {[%emt 0:01:16]} 8. Bxc4 {[%emt 0:00:14]} Nxd5 {[%emt 0:00:16]} 9. Bxd5 {[%emt 0:00:47]} exd5 {[%emt 0:00:07]} 10. Qxd5 {[%emt 0:00:07]} Ba6 {[%emt 0:15:17]} 11. Be3 {[%emt 0:05:57]} Qa5 {[%emt 0:05:39]} 12. Rc1 {[%emt 0:16:33]} Qb5 {[%emt 0:30:53]} 13. Qd2 {[%emt 0:08:48]} Bxc3 {[%emt 0:05:02]} 14. Rxc3 {[%emt 0:01:54]} d6 {[%emt 0:00:28]} 15. Kf2 {[%emt 0:02:39]} Nc6 {[%emt 0:20:36]} 16. Nf4 {[%emt 0:05:28]} Ne5 {[%emt 0:01:21]} 17. b3 {[%emt 0:04:38]} Rad8 {[%emt 0:03:28]} 18. Rd1 {[%emt 0:03:16]} Rd7 {[%emt 0:01:21]} 19. Nd5 {[%emt 0:04:17]} Qb8 {[%emt 0:04:55]} 20. Bf4 {[%emt 0:04:43]} Qe8 {[%emt 0:02:55]} 21. Bxe5 {[%emt 0:07:01]} Qxe5 {[%emt 0:00:29]} 22. Qf4 {[%emt 0:00:16]} Qxf4 {[%emt 0:02:03]} 23. Nxf4 {[%emt 0:00:31]} Rfd8 {[%emt 0:00:44]} 24. Rc2 {[%emt 0:05:27]} g6 {[%emt 0:01:13]} 25. h4 {[%emt 0:03:14]} Kg7 {[%emt 0:00:28]} 26. g4 {[%emt 0:01:38]} Bb7 {[%emt 0:00:28]} 27. g5 {[%emt 0:02:52]} h6 {[%emt 0:00:46]} 28. Rcd2 {[%emt 0:04:55]} Bc6 {[%emt 0:00:18]} 29. Ke3 {[%emt 0:03:19]} a5 {[%emt 0:00:42]} 30. Nd5 {[%emt 0:01:09]} Bxd5 {[%emt 0:00:15]} 31. Rxd5 {[%emt 0:00:01]} hxg5 {[%emt 0:00:24]} 32. hxg5 {[%emt 0:00:08]} f6 {[%emt 0:00:31]} 33. gxf6+ {[%emt 0:04:15]} Kxf6 {[%emt 0:00:05]} 34. Kf4 {[%emt 0:00:01]} Ke6 {[%emt 0:00:31]} 35. Kg5 {[%emt 0:00:43]} a4 {[%emt 0:01:24]} 36. f4 {[%emt 0:04:20]} axb3 {[%emt 0:00:10]} 37. axb3 {[%emt 0:00:09]} Rb7 {[%emt 0:01:20]} 38. e5 {[%emt 0:01:29]} Rxb3 {[%emt 0:00:06]} 39. Rxd6+ {[%emt 0:00:25]} Rxd6 {[%emt 0:00:03]} 40. Rxd6+ {[%emt 0:04:11]} Ke7 {[%emt 0:00:02]} 41. Kxg6 {[%emt 0:30:39]} c4 {[%emt 0:03:49]} 42. Rc6 {[%emt 0:00:00]} Rg3+ {[%emt 0:01:04]} 43. Kf5 {[%emt 0:00:00]} c3 {[%emt 0:00:12]} 44. Ke4 {[%emt 0:00:00]} Kd7 {[%emt 0:00:26]} 45. Rc5 {[%emt 0:00:00]} Rh3 {[%emt 0:01:22]} 46. f5 {[%emt 0:00:00]} Rh4+ {[%emt 0:01:33]} 47. Kd5 {[%emt 0:00:00]} Rf4 {[%emt 0:03:21]} 48. e6+ {[%emt 0:00:00] normal} Kd8 {[%emt 0:00:52]} 49. Ke5 {[%emt 0:00:00]} Rf3 1-0

[Event "DVM U20 2019"]
[Site "Braunschweig"]
[Date "2019.12.28"]
[Round "4"]
[White "Kaiser, Frederic"]
[Black "Hoenselaar, Dennis"]
[Result "1/2-1/2"]
[ECO "B31"]
[WhiteElo "1901"]
[BlackElo "1769"]
[Annotator "NA"]
[PlyCount "60"]
[EventDate "2019.12.27"]
[EventType "team-tourn"]
[EventRounds "7"]
[EventCountry "GER"]
[SourceTitle "playchess.com"]
[Source "ChessBase"]
[SourceQuality "1"]
[WhiteTeam "Sges Bensheim"]
[BlackTeam "SK Turm Kleve"]
[TimeControl "40/5400+30:1800+30"]

1. e4 {[%emt 0:00:00]} c5 {[%emt 0:00:00]} 2. Nf3 {[%emt 0:00:00]} Nc6 {[%emt 0:00:00]} 3. Bb5 {[%emt 0:00:00]} g6 {[%emt 0:00:00]} 4. Bxc6 {[%emt 0:00:07]} dxc6 {[%emt 0:00:08]} 5. d3 {[%emt 0:00:19]} Bg7 {[%emt 0:00:31]} 6. O-O {[%emt 0:01:01]} Nf6 {[%emt 0:01:57]} 7. Nbd2 {[%emt 0:00:53]} O-O {[%emt 0:01:46]} 8. h3 {[%emt 0:00:58]} Be6 {[%emt 0:06:17]} 9. Ng5 {[%emt 0:05:19]} Qd7 {[%emt 0:09:01]} 10. Qe2 {[%emt 0:01:19]} h6 {[%emt 0:01:58]} 11. Nxe6 {[%emt 0:00:31]} Qxe6 {[%emt 0:00:02]} 12. a4 {[%emt 0:16:47]} a5 {[%emt 0:02:22]} 13. Nc4 {[%emt 0:01:22]} Nd7 {[%emt 0:07:20]} 14. Bd2 {[%emt 0:02:28]} b5 {[%emt 0:05:22]} 15. axb5 {[%emt 0:02:40]} cxb5 {[%emt 0:00:40]} 16. Nxa5 {[%emt 0:03:28]} Bxb2 {[%emt 0:02:16]} 17. Rab1 {[%emt 0:01:25]} Qa2 {[%emt 0:03:22]} 18. Bxh6 {[%emt 0:14:43]} Rxa5 {[%emt 0:04:01]} 19. Bxf8 {[%emt 0:00:06]} Nxf8 {[%emt 0:00:44]} 20. c4 {[%emt 0:00:57]} Be5 {[%emt 0:06:01]} 21. Qxa2 {[%emt 0:05:00]} Rxa2 {[%emt 0:00:09]} 22. cxb5 {[%emt 0:00:22]} Ra7 {[%emt 0:10:40]} 23. Rfc1 {[%emt 0:07:04]} Nd7 {[%emt 0:05:59]} 24. Rb3 {[%emt 0:06:26]} Nb6 {[%emt 0:07:34]} 25. g3 {[%emt 0:01:47]} Nd7 {[%emt 0:02:59]} 26. Rc2 {[%emt 0:00:38]} Kg7 {[%emt 0:01:14]} 27. Kg2 {[%emt 0:00:30]} g5 {[%emt 0:02:04]} 28. Kf3 {[%emt 0:03:17]} Bd4 {[%emt 0:01:39]} 29. Ke2 {[%emt 0:01:03]} Ne5 {[%emt 0:01:28]} 30. f4 {[%emt 0:01:41]} gxf4 {[%emt 0:05:07] normal Kf3} 1/2-1/2